fUSD/lending_fUSD_20240115
["ID","MTS","AMOUNT","RATE_DAILY","PERIOD"]
[311690604,1705336246892,-8936.6653008,0.00031778,2]
[311690605,1705336246902,-9863.3858708,0.00031778,2]
[311690606,1705336246911,-153.12319756,0.00031793,7]
[311690607,1705336246920,-255.0,0.000318,120]
[311690608,1705336246930,-151.0,0.000318,7]
[311690609,1705336246939,-151.0,0.000318,7]
[311690610,1705336246949,-421116.772304,0.000318,2]
[311690611,1705336246958,-151.0,0.000318,7]
[311690612,1705336246967,-166.36040672,0.00031813,7]
[311690613,1705336246976,-367.30400215,0.00031816,7]
[311690614,1705336246986,-156.43690265,0.00031837,7]
[311690615,1705336246995,-286.65578696,0.00031841,7]
[311690616,1705336247007,-450.0,0.0003188,3]
[311690617,1705336247016,-845.04371435,0.0003189,7]
[311690618,1705336247025,-367.30400215,0.00031902,7]
[311690619,1705336247034,-160.01800292,0.00031909,7]
[311690620,1705336247043,-151.07627181,0.00031917,7]
[311690621,1705336247052,-166.6144594,0.00031932,7]
[311690622,1705336247061,-163.33117129,0.00031963,7]
[311690623,1705336247070,-153.84,0.00031963,2]
[311690624,1705336247080,-500.0,0.00031987,3]
[311690625,1705336247090,-200.0,0.00031987,2]
[311690626,1705336247099,-151.0,0.00031997,4]
[311690627,1705336247108,-100000.0,0.00032,2]
[311690628,1705336247118,-297.71369058,0.00032,4]
[311690629,1705336247127,-68854.43196459,0.00032,4]
[311690630,1705336247136,-13063.98403504,0.00032,4]
[311690631,1705336247146,-500000.0,0.00032,3]
[311690632,1705336247155,-150.90801734,0.00032,2]
[311690633,1705336247164,-550.0,0.00032,20]
[311690634,1705336247173,-151.0,0.00032,7]
[311690635,1705336247183,-151.0,0.00032,7]
[311690636,1705336247192,-300.0,0.00032,5]
[311690637,1705336247201,-178.49102,0.00032,7]
[311690638,1705336247211,-165.930186,0.00032,3]
[311690639,1705336247220,-165.930187,0.00032,3]
[311690640,1705336247230,-497.313368,0.00032,2]
[311690641,1705336247239,-163.33117129,0.00032001,7]
[311690642,1705336247249,-162.54209167,0.00032025,7]
[311690643,1705336247260,-163.33117129,0.00032033,7]
[311690644,1705336247270,-158.48101384,0.0003207,7]
[311690645,1705336247279,-160.01800292,0.00032075,7]
[311690646,1705336247289,-167.29723869,0.00032083,7]
[311690647,1705336247299,-158.48101384,0.00032092,7]
[311690648,1705336247308,-367.30400215,0.00032155,7]
[311690649,1705336247318,-367.30400215,0.00032156,7]
[311690650,1705336247327,-156.43690265,0.00032162,7]
[311690651,1705336247336,-162.54209167,0.0003221,7]
[311690652,1705336247346,-845.04371435,0.00032224,7]
[311690653,1705336247356,-154.62305151,0.00032231,7]
[311690654,1705336247365,-286.65578696,0.00032232,7]
[311690655,1705336247374,-153.12319756,0.00032278,7]
[311690656,1705336247384,-367.30400215,0.00032281,7]
[311690657,1705336247394,-167.69484041,0.0003231,7]
[311690658,1705336247403,-1103.18869887,0.00032318,7]
[311690659,1705336247413,-158.48101384,0.00032331,7]
[311690660,1705336247422,-1103.18869887,0.00032377,7]
[311690661,1705336247431,-367.30400215,0.00032377,7]
[311690662,1705336247442,-845.04371435,0.00032394,7]
[311690663,1705336247451,-157.46077969,0.00032399,7]
[311690664,1705336247460,-152.26,0.000324,2]
[311690665,1705336247470,-152.26,0.000324,2]
[311690666,1705336247479,-152.26,0.000324,2]
[311690667,1705336247489,-152.26,0.000324,2]
[311690668,1705336247499,-152.26,0.000324,2]
[311690669,1705336247511,-152.26,0.000324,2]
[311690670,1705336247521,-152.26,0.000324,2]
[311690671,1705336247531,-152.26,0.000324,2]
[311690672,1705336247541,-152.26,0.000324,2]
[311690673,1705336247552,-152.26,0.000324,2]
[311690674,1705336247562,-152.26,0.000324,2]
[311690675,1705336247571,-152.26,0.000324,2]
[311690676,1705336247581,-152.26,0.000324,2]
[311690677,1705336247591,-152.26,0.000324,2]
[311690678,1705336247601,-152.26,0.000324,2]
[311690679,1705336247611,-152.26,0.000324,2]
[311690680,1705336247622,-152.26,0.000324,2]
[311690681,1705336247632,-152.26,0.000324,2]
[311690682,1705336247643,-152.26,0.000324,2]
[311690683,1705336247653,-152.26,0.000324,2]
[311690684,1705336247664,-152.26,0.000324,2]
[311690685,1705336247674,-152.26,0.000324,2]
[311690686,1705336247686,-157.72,0.000324,2]
[311690687,1705336247697,-157.72,0.000324,2]
[311690688,1705336247707,-157.72,0.000324,2]
[311690689,1705336247717,-157.72,0.000324,2]
[311690690,1705336247728,-286.65578696,0.000324,7]
[311690691,1705336247737,-162.63449034,0.00032407,7]
[311690692,1705336247747,-1000.0,0.00032482,7]
[311690693,1705336247762,-1000.0,0.00032482,7]
[311690694,1705336247774,-1000.0,0.00032482,7]
[311690695,1705336247785,-276.0,0.00032486,2]
[311690696,1705336247795,-174.0,0.00032486,2]
[311690697,1705336247804,-367.30400215,0.00032491,7]
[311690698,1705336247814,-450.0,0.000325,3]
[311690699,1705336247824,-400000.0,0.000325,3]
[311690700,1705336247833,-550.0,0.000325,21]
[311690701,1705336247843,-1000.0,0.00032506,7]
[311690702,1705336247852,-6843.22981213,0.00032548,2]
[311690703,1705336247862,-400.0,0.0003257,2]
[311690704,1705336247871,-203.0,0.00032572,18]
[311690705,1705336247881,-845.04371435,0.00032589,7]
[311690706,1705336247890,-160.01800292,0.00032612,7]
[311690707,1705336247899,-1103.18869887,0.00032635,7]
[311690708,1705336247908,-151.0,0.0003265,2]
[311690709,1705336247918,-845.04371435,0.00032657,7]
[311690710,1705336247927,-367.30400215,0.00032657,7]
[311690711,1705336247937,-176.95279025,0.00032669,7]
[311690712,1705336247946,-845.04371435,0.00032686,7]
[311690713,1705336247955,-158.48101384,0.00032693,7]
[311690714,1705336247965,-157.41746226,0.00032705,7]
[311690715,1705336247974,-177.23,0.00032757,2]
[311690716,1705336247983,-157.41746226,0.00032774,7]
[311690717,1705336247992,-845.04371435,0.00032781,7]
[311690718,1705336248005,-845.04371435,0.0003283,7]
[311690719,1705336248014,-968.0,0.00032833,2]
[311690720,1705336248023,-367.30400215,0.00032845,7]
[311690721,1705336248033,-151.07627181,0.00032874,7]
[311690722,1705336248042,-151.0,0.00032876,7]
[311690723,1705336248051,-500.0,0.00032876,2]
[311690724,1705336248061,-1005.03,0.00032876,2]
[311690725,1705336248070,-500.0,0.00032876,2]
[311690726,1705336248080,-500.0,0.00032876,2]
[311690727,1705336248089,-500.0,0.00032876,2]
[311690728,1705336248106,-500.0,0.00032876,2]
[311690729,1705336248141,-509.63729828,0.00032876,2]
[311690730,1705336248183,-500.0,0.00032876,7]
[311690731,1705336248226,-460.97609246,0.00032876,7]
[311690732,1705336248271,-500.0,0.00032876,7]
[311690733,1705336248295,-500.0,0.00032876,7]
[311690734,1705336248305,-328.49739165,0.00032876,7]
[311690735,1705336248314,-500.0,0.00032876,7]
[311690736,1705336248323,-500.0,0.00032876,7]
[311690737,1705336248332,-500.0,0.00032876,7]
[311690738,1705336248341,-3947.23,0.00032876,2]
[311690739,1705336248350,-1541.94,0.00032876,2]
[311690740,1705336248359,-2029.28,0.00032876,2]
[311690741,1705336248368,-500.0,0.00032876,2]
[311690742,1705336248377,-500.0,0.00032876,2]
[311690743,1705336248386,-500.0,0.00032876,2]
[311690744,1705336248396,-500.0,0.00032876,2]
[311690745,1705336248405,-391.0825371,0.00032876,2]
[311690746,1705336248414,-498.59930223,0.00032876,2]
[311690747,1705336248424,-502.29200981,0.00032876,2]
[311690748,1705336248433,-500.0,0.00032876,2]
[311690749,1705336248442,-320.41540871,0.00032876,2]
[311690750,1705336248451,-500.0,0.00032876,2]
[311690751,1705336248460,-301.28177513,0.00032876,2]
[311690752,1705336248469,-500.0,0.00032876,2]
[311690753,1705336248478,-501.67494987,0.00032876,2]
[311690754,1705336248487,-501.11781007,0.00032876,2]
[311690755,1705336248496,-500.76855259,0.00032876,2]
[311690756,1705336248506,-502.78938073,0.00032876,2]
[311690757,1705336248515,-500.0,0.00032876,2]
[311690758,1705336248524,-500.0,0.00032876,2]
[311690759,1705336248533,-500.0,0.00032876,2]
[311690760,1705336248542,-500.0,0.00032876,2]
[311690761,1705336248551,-500.0,0.00032876,2]
[311690762,1705336248560,-500.0,0.00032876,2]
[311690763,1705336248569,-473.10734347,0.00032876,2]
[311690764,1705336248578,-286.58185918,0.00032876,2]
[311690765,1705336248587,-500.0,0.00032876,2]
[311690766,1705336248596,-500.0,0.00032876,2]
[311690767,1705336248605,-500.0,0.00032876,2]
[311690768,1705336248614,-500.0,0.00032876,2]
[311690769,1705336248623,-500.0,0.00032876,2]
[311690770,1705336248632,-500.0,0.00032876,2]
[311690771,1705336248641,-500.0,0.00032876,2]
[311690772,1705336248649,-500.0,0.00032876,2]
[311690773,1705336248658,-500.0,0.00032876,2]
[311690774,1705336248667,-500.0,0.00032876,2]
[311690775,1705336248676,-500.0,0.00032876,2]
[311690776,1705336248685,-500.0,0.00032876,2]
[311690777,1705336248694,-500.0,0.00032876,2]
[311690778,1705336248703,-500.0,0.00032876,2]
[311690779,1705336248712,-500.0,0.00032876,2]
[311690780,1705336248721,-314.21258838,0.00032876,2]
[311690781,1705336248730,-501.12206743,0.00032876,2]
[311690782,1705336248739,-500.0,0.00032876,2]
[311690783,1705336248748,-500.0,0.00032876,2]
[311690784,1705336248759,-500.0,0.00032876,2]
[311690785,1705336248768,-500.0,0.00032876,2]
[311690786,1705336248777,-500.0,0.00032876,2]
[311690787,1705336248786,-500.0,0.00032876,2]
[311690788,1705336248795,-500.0,0.00032876,2]
[311690789,1705336248805,-500.0,0.00032876,2]
[311690790,1705336248814,-500.0,0.00032876,2]
[311690791,1705336248823,-500.0,0.00032876,2]
[311690792,1705336248832,-500.0,0.00032876,2]
[311690793,1705336248841,-500.0,0.00032876,2]
[311690794,1705336248850,-500.0,0.00032876,2]
[311690795,1705336248859,-508.06727546,0.00032876,2]
[311690796,1705336248868,-500.0,0.00032876,2]
[311690797,1705336248877,-500.0,0.00032876,2]
[311690798,1705336248886,-500.88534533,0.00032876,2]
[311690799,1705336248895,-426.93097189,0.00032876,2]
[311690800,1705336248904,-500.0,0.00032876,2]
[311690801,1705336248913,-500.0,0.00032876,2]
[311690802,1705336248922,-500.68914802,0.00032876,2]
[311690803,1705336248931,-500.0,0.00032876,2]
[311690804,1705336248940,-500.70931584,0.00032876,2]
[311690805,1705336248949,-500.0,0.00032876,2]
[311690806,1705336248958,-227.48515843,0.00032876,2]
[311690807,1705336248967,-500.0,0.00032876,2]
[311690808,1705336248977,-258.66832529,0.00032876,3]
[311690809,1705336248986,-500.0,0.00032876,2]
[311690810,1705336248994,-500.0,0.00032876,2]
[311690811,1705336249004,-500.0,0.00032876,2]
[311690812,1705336249013,-500.0,0.00032876,2]
[311690813,1705336249022,-172.01279342,0.00032876,2]
[311690814,1705336249031,-500.0,0.00032876,2]
[311690815,1705336249041,-500.0,0.00032876,2]
[311690816,1705336249050,-500.0,0.00032876,2]
[311690817,1705336249060,-500.0,0.00032876,2]
[311690818,1705336249263,-500.0,0.00032876,2]
[311690819,1705336249277,-500.0,0.00032876,2]
[311690820,1705336249287,-500.0,0.00032876,2]
[311690821,1705336249296,-946.21,0.00032876,2]
[311690822,1705336249305,-500.0,0.00032876,2]
[311690823,1705336249314,-500.0,0.00032876,2]
[311690824,1705336249323,-556.75,0.00032876,2]
[311690825,1705336249332,-659.8,0.00032876,2]
[311690826,1705336249341,-500.0,0.00032876,2]
[311690827,1705336249350,-501.28358872,0.00032876,2]
[311690828,1705336249359,-500.0,0.00032876,2]
[311690829,1705336249368,-639.27,0.00032876,2]
[311690830,1705336249377,-500.0,0.00032876,2]
[311690831,1705336249386,-509.18789473,0.00032876,2]
[311690832,1705336249395,-500.0,0.00032876,2]
[311690833,1705336249404,-500.0,0.00032876,2]
[311690834,1705336249413,-501.50569853,0.00032876,2]
[311690835,1705336249422,-500.0,0.00032876,2]
[311690836,1705336249432,-503.07198567,0.00032876,2]
[311690837,1705336249441,-500.0,0.00032876,2]
[311690838,1705336249450,-610.61600364,0.00032876,2]
[311690839,1705336249460,-500.0,0.00032876,2]
[311690840,1705336249468,-707.09,0.00032876,2]
[311690841,1705336249477,-500.0,0.00032876,2]
[311690842,1705336249486,-307.20330689,0.00032876,2]
[311690843,1705336249495,-793.61,0.00032876,2]
[311690844,1705336249506,-500.0,0.00032876,2]
[311690845,1705336249516,-537.78261777,0.00032876,2]
[311690846,1705336249525,-503.24113477,0.00032876,2]
[311690847,1705336249534,-500.0,0.00032876,2]
[311690848,1705336249543,-633.61,0.00032876,2]
[311690849,1705336249552,-500.0,0.00032876,2]
[311690850,1705336249561,-538.67,0.00032876,2]
[311690851,1705336249570,-1000.0,0.00032876,2]
[311690852,1705336249579,-500.0,0.00032876,2]
[311690853,1705336249588,-502.23749557,0.00032876,2]
[311690854,1705336249597,-500.0,0.00032876,2]
[311690855,1705336249607,-500.0,0.00032876,2]
[311690856,1705336249616,-559.26882752,0.00032876,2]
[311690857,1705336249625,-500.0,0.00032876,2]
[311690858,1705336249634,-500.0,0.00032876,2]
[311690859,1705336249643,-625.45,0.00032876,2]
[311690860,1705336249653,-500.0,0.00032876,2]
[311690861,1705336249663,-500.0,0.00032876,2]
[311690862,1705336249672,-500.0,0.00032876,2]
[311690863,1705336249681,-500.0,0.00032876,2]
[311690864,1705336249695,-503.60482572,0.00032876,2]
[311690865,1705336249704,-500.0,0.00032876,2]
[311690866,1705336249713,-504.41,0.00032876,2]
[311690867,1705336249723,-500.0,0.00032876,2]
[311690868,1705336249732,-500.0,0.00032876,2]
[311690869,1705336249741,-500.0,0.00032876,2]
[311690870,1705336249751,-500.0,0.00032876,2]
[311690871,1705336249762,-590.57,0.00032876,2]
[311690872,1705336249773,-500.0,0.00032876,2]
[311690873,1705336249783,-500.0,0.00032876,2]
[311690874,1705336249792,-504.99,0.00032876,2]
[311690875,1705336249802,-500.0,0.00032876,2]
[311690876,1705336249811,-534.45,0.00032876,2]
[311690877,1705336249820,-500.0,0.00032876,2]
[311690878,1705336249830,-631.31,0.00032876,2]
[311690879,1705336249840,-500.0,0.00032876,2]
[311690880,1705336249850,-500.0,0.00032876,2]
[311690881,1705336249859,-943.26,0.00032876,2]
[311690882,1705336249869,-508.43380951,0.00032876,2]
[311690883,1705336249878,-156.62995927,0.00032876,2]
[311690884,1705336249888,-503.18192182,0.00032876,2]
[311690885,1705336249897,-505.23305444,0.00032876,2]
[311690886,1705336249906,-500.0,0.00032876,2]
[311690887,1705336249915,-500.0,0.00032876,2]
[311690888,1705336249925,-500.0,0.00032876,2]
[311690889,1705336249934,-500.0,0.00032876,2]
[311690890,1705336249944,-500.0,0.00032876,2]
[311690891,1705336249953,-500.0,0.00032876,2]
[311690892,1705336249962,-500.0,0.00032876,2]
[311690893,1705336249971,-500.0,0.00032876,2]
[311690894,1705336249981,-518.55,0.00032876,2]
[311690895,1705336249990,-500.0,0.00032876,2]
[311690896,1705336249999,-500.0,0.00032876,2]
[311690897,1705336250011,-817.32,0.00032876,2]
[311690898,1705336250020,-503.98,0.00032876,2]
[311690899,1705336250030,-166.85672311,0.00032876,2]
[311690900,1705336250039,-500.0,0.00032876,2]
[311690901,1705336250049,-500.0,0.00032876,2]
[311690902,1705336250058,-707.82,0.00032876,2]
[311690903,1705336250069,-500.0,0.00032876,2]
[311690904,1705336250079,-347.79023558,0.00032876,2]
[311690905,1705336250088,-500.0,0.00032876,2]
[311690906,1705336250097,-501.60739364,0.00032876,2]
[311690907,1705336250107,-516.64364288,0.00032876,15]
[311690908,1705336250117,-500.0,0.00032876,2]
[311690909,1705336250127,-500.0,0.00032876,2]
[311690910,1705336250137,-500.0,0.00032876,2]
[311690911,1705336250147,-578.69,0.00032876,2]
[311690912,1705336250157,-500.0,0.00032876,2]
[311690913,1705336250167,-500.0,0.00032876,2]
[311690914,1705336250177,-500.0,0.00032876,2]
[311690915,1705336250186,-500.0,0.00032876,2]
[311690916,1705336250201,-503.2006233,0.00032876,2]
[311690917,1705336250222,-600.99663438,0.00032876,2]
[311690918,1705336250232,-500.0,0.00032876,2]
[311690919,1705336250241,-163.61755881,0.00032876,2]
[311690920,1705336250251,-500.0,0.00032876,2]
[311690921,1705336250261,-500.0,0.00032876,2]
[311690922,1705336250271,-500.0,0.00032876,2]
[311690923,1705336250281,-500.0,0.00032876,20]
[311690924,1705336250291,-500.0,0.00032876,2]
[311690925,1705336250300,-634.98,0.00032876,2]
[311690926,1705336250309,-500.0,0.00032876,2]
[311690927,1705336250319,-520.70953057,0.00032876,2]
[311690928,1705336250328,-500.0,0.00032876,2]
[311690929,1705336250338,-500.0,0.00032876,2]
[311690930,1705336250347,-500.0,0.00032876,2]
[311690931,1705336250357,-500.0,0.00032876,2]
[311690932,1705336250366,-500.0,0.00032876,2]
[311690933,1705336250375,-500.0,0.00032876,2]
[311690934,1705336250385,-500.0,0.00032876,2]
[311690935,1705336250394,-686.23,0.00032876,2]
[311690936,1705336250404,-507.88476721,0.00032876,2]
[311690937,1705336250414,-500.0,0.00032876,2]
[311690938,1705336250423,-500.0,0.00032876,2]
[311690939,1705336250433,-500.0,0.00032876,2]
[311690940,1705336250442,-500.0,0.00032876,2]
[311690941,1705336250452,-500.0,0.00032876,2]
[311690942,1705336250461,-500.0,0.00032876,2]
[311690943,1705336250472,-551.69,0.00032876,2]
[311690944,1705336250482,-551.69,0.00032876,2]
[311690945,1705336250492,-551.69,0.00032876,2]
[311690946,1705336250503,-551.69,0.00032876,2]
[311690947,1705336250514,-551.69,0.00032876,2]
[311690948,1705336250526,-551.69,0.00032876,2]
[311690949,1705336250536,-551.69,0.00032876,2]
[311690950,1705336250547,-551.69,0.00032876,2]
[311690951,1705336250557,-551.69,0.00032876,2]
[311690952,1705336250567,-500.0,0.00032876,2]
[311690953,1705336250577,-551.69,0.00032876,2]
[311690954,1705336250587,-551.69,0.00032876,2]
[311690955,1705336250597,-500.0,0.00032876,2]
[311690956,1705336250606,-551.69,0.00032876,2]
[311690957,1705336250617,-500.0,0.00032876,2]
[311690958,1705336250627,-551.69,0.00032876,2]
[311690959,1705336250637,-551.69,0.00032876,2]
[311690960,1705336250648,-551.69,0.00032876,2]
[311690961,1705336250658,-551.69,0.00032876,2]
[311690962,1705336250669,-551.69,0.00032876,2]
[311690963,1705336250679,-551.69,0.00032876,2]
[311690964,1705336250689,-551.69,0.00032876,2]
[311690965,1705336250699,-500.0,0.00032876,2]
[311690966,1705336250709,-551.69,0.00032876,2]
[311690967,1705336250718,-500.0,0.00032876,2]
[311690968,1705336250728,-551.69,0.00032876,2]
[311690969,1705336250738,-500.0,0.00032876,2]
[311690970,1705336250749,-551.69,0.00032876,2]
[311690971,1705336250763,-551.69,0.00032876,2]
[311690972,1705336250772,-500.0,0.00032876,2]
[311690973,1705336250782,-500.0,0.00032876,2]
[311690974,1705336250792,-500.0,0.00032876,2]
[311690975,1705336250802,-551.88457973,0.00032876,2]
[311690976,1705336250812,-900.67,0.00032876,2]
[311690977,1705336250822,-500.0,0.00032876,2]
[311690978,1705336250833,-500.0,0.00032876,2]
[311690979,1705336250843,-500.0,0.00032876,2]
[311690980,1705336250853,-250.0,0.00032876,2]
[311690981,1705336250864,-500.0,0.00032876,2]
[311690982,1705336250873,-500.0,0.00032876,2]
[311690983,1705336250883,-500.0,0.00032876,2]
[311690984,1705336250893,-500.0,0.00032876,2]
[311690985,1705336250902,-500.0,0.00032876,2]
[311690986,1705336250912,-501.18943108,0.00032876,2]
[311690987,1705336250921,-501.85599947,0.00032876,2]
[311690988,1705336250930,-500.0,0.00032876,2]
[311690989,1705336250940,-502.97332162,0.00032876,2]
[311690990,1705336250950,-503.98139747,0.00032876,2]
[311690991,1705336250960,-528.98995142,0.00032876,2]
[311690992,1705336250969,-500.0,0.00032876,2]
[311690993,1705336250979,-557.15,0.00032876,2]
[311690994,1705336250989,-500.0,0.00032876,2]
[311690995,1705336250998,-500.0,0.00032876,2]
[311690996,1705336251010,-500.0,0.00032876,2]
[311690997,1705336251019,-500.0,0.00032876,2]
[311690998,1705336251029,-500.0,0.00032876,2]
[311690999,1705336251039,-503.39719602,0.00032876,2]
[311691000,1705336251048,-500.0,0.00032876,2]
[311691001,1705336251058,-500.0,0.00032876,2]
[311691002,1705336251067,-500.0,0.00032876,2]
[311691003,1705336251077,-500.0,0.00032876,2]
[311691004,1705336251087,-500.0,0.00032876,2]
[311691005,1705336251097,-625.16,0.00032876,2]
[311691006,1705336251106,-500.0,0.00032876,15]
[311691007,1705336251116,-500.0,0.00032876,2]
[311691008,1705336251125,-500.0,0.00032876,2]
[311691009,1705336251135,-1000.0,0.00032876,2]
[311691010,1705336251144,-500.0,0.00032876,2]
[311691011,1705336251154,-500.0,0.00032876,2]
[311691012,1705336251163,-500.0,0.00032876,2]
[311691013,1705336251172,-500.0,0.00032876,2]
[311691014,1705336251182,-500.0,0.00032876,2]
[311691015,1705336251191,-500.0,0.00032876,2]
[311691016,1705336251200,-500.0,0.00032876,2]
[311691017,1705336251210,-500.0,0.00032876,2]
[311691018,1705336251219,-503.02774614,0.00032876,2]
[311691019,1705336251228,-500.0,0.00032876,2]
[311691020,1705336251238,-500.0,0.00032876,2]
[311691021,1705336251247,-500.0,0.00032876,2]
[311691022,1705336251258,-500.0,0.00032876,2]
[311691023,1705336251268,-500.0,0.00032876,2]
[311691024,1705336251278,-500.0,0.00032876,2]
[311691025,1705336251287,-500.0,0.00032876,2]
[311691026,1705336251297,-500.0,0.00032876,2]
[311691027,1705336251306,-214.53142473,0.00032876,2]
[311691028,1705336251316,-500.0,0.00032876,2]
[311691029,1705336251325,-500.0,0.00032876,2]
[311691030,1705336251336,-500.0,0.00032876,2]
[311691031,1705336251345,-500.0,0.00032876,2]
[311691032,1705336251355,-500.0,0.00032876,2]
[311691033,1705336251364,-515.33323738,0.00032876,2]
[311691034,1705336251373,-521.5521043,0.00032876,2]
[311691035,1705336251383,-500.0,0.00032876,2]
[311691036,1705336251393,-706.86,0.00032876,2]
[311691037,1705336251402,-500.0,0.00032876,2]
[311691038,1705336251412,-500.0,0.00032876,2]
[311691039,1705336251421,-500.0,0.00032876,2]
[311691040,1705336251431,-923.69,0.00032876,2]
[311691041,1705336251440,-500.0,0.00032876,2]
[311691042,1705336251450,-500.0,0.00032876,2]
[311691043,1705336251459,-500.0,0.00032876,2]
[311691044,1705336251469,-500.0,0.00032876,2]
[311691045,1705336251479,-500.0,0.00032876,2]
[311691046,1705336251488,-506.0929085,0.00032876,2]
[311691047,1705336251499,-500.0,0.00032876,2]
[311691048,1705336251510,-500.0,0.00032876,2]
[311691049,1705336251520,-500.0,0.00032876,2]
[311691050,1705336251530,-500.0,0.00032876,2]
[311691051,1705336251541,-500.0,0.00032876,2]
[311691052,1705336251551,-500.0,0.00032876,2]
[311691053,1705336251561,-500.0,0.00032876,2]
[311691054,1705336251571,-500.0,0.00032876,2]
[311691055,1705336251581,-500.0,0.00032876,2]
[311691056,1705336251591,-500.0,0.00032876,2]
[311691057,1705336251601,-500.0,0.00032876,2]
[311691058,1705336251610,-585.6806279,0.00032876,2]
[311691059,1705336251620,-500.0,0.00032876,2]
[311691060,1705336251630,-649.21,0.00032876,2]
[311691061,1705336251640,-500.0,0.00032876,2]
[311691062,1705336251650,-648.12,0.00032876,2]
[311691063,1705336251660,-538.82035589,0.00032876,2]
[311691064,1705336251750,-500.0,0.00032876,2]
[311691065,1705336251761,-503.50107968,0.00032876,2]
[311691066,1705336251771,-500.0,0.00032876,2]
[311691067,1705336251781,-500.0,0.00032876,2]
[311691068,1705336251790,-504.023844,0.00032876,2]
[311691069,1705336251800,-500.0,0.00032876,2]
[311691070,1705336251810,-500.0,0.00032876,2]
[311691071,1705336251820,-500.0,0.00032876,2]
[311691072,1705336251830,-501.00274075,0.00032876,2]
[311691073,1705336251839,-500.0,0.00032876,2]
[311691074,1705336251849,-516.40181707,0.00032876,2]
[311691075,1705336251858,-500.0,0.00032876,2]
[311691076,1705336251868,-503.88,0.00032876,2]
[311691077,1705336251877,-500.0,0.00032876,2]
[311691078,1705336251887,-500.0,0.00032876,2]
[311691079,1705336251897,-500.0,0.00032876,2]
[311691080,1705336251906,-500.0,0.00032876,2]
[311691081,1705336251916,-500.0,0.00032876,2]
[311691082,1705336251925,-500.0,0.00032876,2]
[311691083,1705336251934,-1253.2,0.00032876,2]
[311691084,1705336251944,-500.0,0.00032876,2]
[311691085,1705336251953,-500.0,0.00032876,2]
[311691086,1705336251961,-500.0,0.00032876,2]
[311691087,1705336251971,-500.0,0.00032876,2]
[311691088,1705336251981,-607.59,0.00032876,2]
[311691089,1705336251991,-500.0,0.00032876,2]
[311691090,1705336252000,-500.95,0.00032876,2]
[311691091,1705336252011,-500.0,0.00032876,2]
[311691092,1705336252021,-500.0,0.00032876,2]
[311691093,1705336252030,-500.0,0.00032876,2]
[311691094,1705336252040,-500.0,0.00032876,2]
[311691095,1705336252049,-500.0,0.00032876,2]
[311691096,1705336252058,-571.68,0.00032876,2]
[311691097,1705336252067,-500.0,0.00032876,2]
[311691098,1705336252076,-500.0,0.00032876,2]
[311691099,1705336252085,-724.23,0.00032876,2]
[311691100,1705336252095,-938.8,0.00032876,2]
[311691101,1705336252105,-734.97,0.00032876,2]
[311691102,1705336252114,-500.0,0.00032876,2]
[311691103,1705336252123,-500.0,0.00032876,2]